Workbook

Sheet Cover

Sheet Model information and guide
A1: =RIGHT(CELL("filename", $A$1), LEN(CELL("filename", $A$1)) - SEARCH("]", CELL("filename", $A$1))) -> Model information and guide
B3: Model name: | C3: Bad debt Retail Exit Code price cap adjustment model
B4: Version number: | C4: 2
B5: Filename: | C5: =MID(CELL("filename"), FIND("[", CELL("filename"), 1) + 1, FIND("]", CELL("filename"), 1) - FIND("[", CELL("filename"), 1) - 1) -> Bad debt REC adjustment model - February 2022_final.xlsm
B6: Date: | C6: 2022-02-28
B7: Author: | C7: Samuel Adams - Associate, Economist
B8: Author contact information: | C8: samuel.adams@ofwat.gov.uk
B11: Summary of model: | C11: The bad debt Retail Exit Code price cap adjustment model calculates the appropriate uplift to the net and gross margins in the REC price caps to give Retailers additional pricing flexibility to recoup their portion of excess bad debt costs arising from 01 October 2019 to 31 March 2021.
C12: The model uses outturn customer bad debt costs of 2.87% of market turnover - this is calculated as a weighted average for the years 2019-20 and 2020-21.
C13: The model assumes that industry real revenue returns to pre-pandemic levels (2019-20 industry revenue) by the final forecast period 2023-24.
C14: The model incorporates the allowance of an efficient cost of financing bad debt of 3.5% (real terms) in its determination of the present value of an increase industry revenue from an uplift to REC price caps.
C15: The model specifies the REC price cap adjustment in constant price terms (2020-21 prices), using the annual CPIH index for October to adjust annual revenue forecasts accordingly.
C16: Details of our methodology are included in appendix A1 of the Bad debt February 2022 decision document.
C17: Follow link >> | D17: Bad debt February 2022 decision document
B20: Disclaimer: | C20: Macros must be enabled in this model. This model uses a macro to implement the solver function to determine the uplift to REC net and gross margins such that present value of the increase in industry revenue from an uplift in prices equals the value of Retailer portion of excess bad debt costs arising from 01 October 2019 to 31 March 2021. This macro is run by clicking the 'Recalculate REC price cap adjustment' button in the 'Calculations' sheet. If any inputs are altered and the error check status is highlighted red, the macro needs to be run by clicking the 'Recalculate REC price cap adjustment' button.
B24: Known limitations of the model:
C26: Issue | E26: Details | F26: Model link
C27: Use of macros | E27: Macros must be enabled for this model to calculate the adjustment to REC net and gross margins. | F27: n/a
C28: Hardware requirements | E28: The macros in this model have been tested on 32 bit Excel. The macros do not contain any code, such as DECLARE statements, that will not work on 64 bit Excel but they have not been tested on 64 bit Excel. | F28: n/a
B31: Error check status | C31: =Check!C$8 -> 0
A34: END

Sheet FAST colour guide
A1: =RIGHT(CELL("filename", $A$1), LEN(CELL("filename", $A$1)) - SEARCH("]", CELL("filename", $A$1))) -> FAST colour guide
A3: Cell / Row / Column colour
B5: Font colour
E6: Ofwat second blue text (no shade) | G6: Imported from another sheet/section
E8: Ofwat red text (no shade) | G8: Exported to another sheet/section *
E10: Black text (no shade) | G10: Neither imported nor exported
E12: * Except from input sheets (sheets with 'Inp' prefix)
E14: Ofwat dark green (no shade) | G14: Documentation
B16: Font and shade combinations
E17: Black text + light yellow shade | G17: Inputs
E19: Black text + light grey shade on ENTIRE row | G19: Within-worksheet counter-flow
E21: Ofwat second blue text + light grey shade | G21: Between-worksheet counter-flow
E23: Light blue | G23: Stored/dead/hard coded outputs
E25: White text (Franklin Gothic Demi) + Ofwat purple shade | G25: Warning text
E27: 0 | G27: Conditional formatting for error checks*
E29: * returns green when value is zero. For all other values it returns red
B31: Other
E32: Empty cell with light grey shade | G32: Empty cells being referenced/used
E34: Entire row/column with blue text + Ofwat light blue shade | G34: Section separator
B36: Checks and administration
E38: Lemon shade | G38: Values or logic to be reviewed/discussed
B40: Worksheet tab colour coding
E42: Ofwat yellow – 50% | G42: Input sheets
E44: Ofwat grey – 33% | G44: Documentation and calculation cheets
E46: Second blue – 66% | G46: Cached results sheets
E48: Ofwat purple – 66% | G48: Quality control
E50: Ofwat yellow – 100% | G50: Temporary
E52: Ofwat green – 66% | G52: Outputs
A55: END

Sheet Inputs -->

Sheet Inputs
A1: =RIGHT(CELL("filename", $A$1), LEN(CELL("filename", $A$1)) - SEARCH("]", CELL("filename", $A$1))) -> Inputs
E2: =Time!E$22 -> Model Period BEG | J2: =Time!J$22 -> 2019-04-01 | K2: =Time!K$22 -> 2020-04-01 | L2: =Time!L$22 -> 2021-04-01 | M2: =Time!M$22 -> 2022-04-01 | N2: =Time!N$22 -> 2023-04-01
E3: =Time!E$23 -> Model Period END | F3: =Check!F$8 -> 0 | G3: Error chks | J3: =Time!J$23 -> 2020-03-31 | K3: =Time!K$23 -> 2021-03-31 | L3: =Time!L$23 -> 2022-03-31 | M3: =Time!M$23 -> 2023-03-31 | N3: =Time!N$23 -> 2024-03-31
E4: =Time!E$59 -> Outturn vs Forecast | J4: =Time!J$59 -> Outturn | K4: =Time!K$59 -> Outturn | L4: =Time!L$59 -> Forecast | M4: =Time!M$59 -> Forecast | N4: =Time!N$59 -> Forecast
E5: =Time!E$94 -> Financial Year Ending | J5: =Time!J$94 -> 2020 | K5: =Time!K$94 -> 2021 | L5: =Time!L$94 -> 2022 | M5: =Time!M$94 -> 2023 | N5: =Time!N$94 -> 2024
E6: =Time!E$11 -> Model column counter | F6: Constant | G6: Unit | H6: Total | J6: =Time!J$11 -> 1 | K6: =Time!K$11 -> 2 | L6: =Time!L$11 -> 3 | M6: =Time!M$11 -> 4 | N6: =Time!N$11 -> 5
A8: TIME
E10: First date of time ruler | F10: 2019-04-01 | G10: date
E12: Last Outturn Date | F12: 2021-03-31 | G12: date
E14: Acquisition date (midnight) | F14: 2021-03-31 | G14: date
E15: Length of forecast period | F15: 3 | G15: years
E16: Last forecast date | F16: =DATE(YEAR(F14)+F15,MONTH(F14),DAY(F14)) -> 2024-03-31 | G16: date
E18: First date of REC price cap adjustment | F18: 2022-04-01 | G18: date
E19: Length of REC price cap adjustment period | F19: 2 | G19: years
E20: Last date of REC price cap adjustment period | F20: =DATE(YEAR(F14)+F15,MONTH(F14),DAY(F14)) -> 2024-03-31 | G20: date
E22: Operation Start Date (midnight) | F22: 2021-03-31 | G22: date
E23: Operation Finish Date (midnight) | F23: 2024-03-31 | G23: date
E24: First Modelling Column Financial Year Number | F24: 2020 | G24: year
E25: Financial Year End Month Number | F25: 3 | G25: month #
A28: BAD DEBT INPUTS
E30: Industry wide outturn bad debt as a proportion of turnover for the two years ended 31 March 2021 | F30: 0.0287 | G30: %
E31: Excess bad debt threshold | F31: 0.02 | G31: %
E33: Excess bad debt sharing factor | F33: 0.75 | G33: %
A36: INDUSTRY REVENUE INPUTS
E38: Annual industry revenue - nominal | G38: £000s | J38: 2565000 | K38: 2194000 | L38: 2400000 | M38: 2540000 | N38: =J38 -> 2565000
E39: Annual industry revenue - financial year price terms | G39: year | J39: 2020 | K39: 2021 | L39: 2022 | M39: 2022 | N39: 2020
E41: Industry revenue from 01 October 2019 to 31 March 2020 - nominal | G41: £000s | J41: 1257000
E42: Industry revenue from 01 October 2019 to 31 March 2020 - financial year price terms | G42: year | J42: 2020
A45: FINANCING COST INPUT
E47: Efficient cost of financing excess bad debt | F47: 0.035 | G47: %
E48: Present value reference year | F48: 2021 | G48: year
A51: INFLATION
E53: Base year prices financial year | F53: 2021 | G53: year
D55: CPIH indices
E56: Consumer Price Index (with housing) for October 2019 | F56: 108.3 | G56: Index
E57: Consumer Price Index (with housing) for October 2020 - base year | F57: 109.2 | G57: Index
E58: Consumer Price Index (with housing) for October 2021 | F58: 113.4 | G58: Index
A61: END

Sheet Calcs-->

Sheet Time
A1: =RIGHT(CELL("filename", $A$1), LEN(CELL("filename", $A$1)) - SEARCH("]", CELL("filename", $A$1))) -> Time
E2: =Time!E$22 -> Model Period BEG | J2: =Time!J$22 -> 2019-04-01 | K2: =Time!K$22 -> 2020-04-01 | L2: =Time!L$22 -> 2021-04-01 | M2: =Time!M$22 -> 2022-04-01 | N2: =Time!N$22 -> 2023-04-01
E3: =Time!E$23 -> Model Period END | F3: =Check!F$8 -> 0 | G3: Error chks | J3: =Time!J$23 -> 2020-03-31 | K3: =Time!K$23 -> 2021-03-31 | L3: =Time!L$23 -> 2022-03-31 | M3: =Time!M$23 -> 2023-03-31 | N3: =Time!N$23 -> 2024-03-31
E4: =Time!E$59 -> Outturn vs Forecast | J4: =Time!J$59 -> Outturn | K4: =Time!K$59 -> Outturn | L4: =Time!L$59 -> Forecast | M4: =Time!M$59 -> Forecast | N4: =Time!N$59 -> Forecast
E5: =Time!E$94 -> Financial Year Ending | J5: =Time!J$94 -> 2020 | K5: =Time!K$94 -> 2021 | L5: =Time!L$94 -> 2022 | M5: =Time!M$94 -> 2023 | N5: =Time!N$94 -> 2024
E6: =Time!E$11 -> Model column counter | F6: Constant | G6: Unit | H6: Total | J6: =Time!J$11 -> 1 | K6: =Time!K$11 -> 2 | L6: =Time!L$11 -> 3 | M6: =Time!M$11 -> 4 | N6: =Time!N$11 -> 5
A8: MODEL PERIOD
B10: Model Column Counter
E11: Model column counter | G11: counter | J11: =I11 + 1 -> 1 | K11: =J11 + 1 -> 2 | L11: =K11 + 1 -> 3 | M11: 4 | N11: 5
E12: Model Column Total | F12: =MAX(J11:N11) -> 5 | G12: column
E14: =E$11 -> Model column counter | F14: 0 | G14: counter | H14: 0 | I14: 0 | J14: 1 | K14: 2 | L14: 3 | M14: 4 | N14: 5
E15: First model column flag | G15: flag | H15: =SUM(J15:N15) -> 1 | J15: =IF( J14 = 1, 1, 0) -> 1 | K15: 0 | L15: 0 | M15: 0 | N15: 0
E17: =Inputs!E$10 -> First date of time ruler | F17: =Inputs!F$10 -> 2019-04-01 | G17: =Inputs!G$10 -> date
E18: First model period BEG | F18: =DATE(YEAR(F17), MONTH(F17), 1) -> 2019-04-01 | G18: month
E20: =E$18 -> First model period BEG | F20: =F$18 -> 2019-04-01 | G20: =G$18 -> month
E21: =E$15 -> First model column flag | F21: 0 | G21: flag | H21: 1 | I21: 0 | J21: 1 | K21: 0 | L21: 0 | M21: 0 | N21: 0
E22: Model Period BEG | G22: date | J22: =IF( J21 = 1, $F20, I23 + 1) -> 2019-04-01 | K22: 2020-04-01 | L22: 2021-04-01 | M22: 2022-04-01 | N22: 2023-04-01
E23: Model Period END | G23: date | J23: =DATE(YEAR(J22), MONTH(J22) + 12, DAY(1) - 1) -> 2020-03-31 | K23: =DATE(YEAR(K22), MONTH(K22) + 12, DAY(1) - 1) -> 2021-03-31 | L23: 2022-03-31 | M23: 2023-03-31 | N23: 2024-03-31
E25: =E$23 -> Model Period END | F25: =F$23 -> 00:00:00 | G25: date | H25: 00:00:00 | I25: 00:00:00 | J25: 2020-03-31 | K25: 2021-03-31 | L25: 2022-03-31 | M25: 2023-03-31 | N25: 2024-03-31
D26: less | E26: =E$22 -> Model Period BEG | F26: 00:00:00 | G26: date | H26: 00:00:00 | I26: 00:00:00 | J26: 2019-04-01 | K26: 2020-04-01 | L26: 2021-04-01 | M26: 2022-04-01 | N26: 2023-04-01
E27: Days in Model Period | G27: days | H27: =SUM(J27:N27) -> 1827 | J27: =J25 - J26 + 1 -> 366 | K27: 365 | L27: 365 | M27: 365 | N27: 366
A30: OUTTURN PERIOD
E32: =Inputs!E$12 -> Last Outturn Date | F32: =Inputs!F$12 -> 2021-03-31 | G32: =Inputs!G$12 -> date
E33: =E$23 -> Model Period END | F33: 00:00:00 | G33: date | H33: 00:00:00 | I33: 00:00:00 | J33: 2020-03-31 | K33: 2021-03-31 | L33: 2022-03-31 | M33: 2023-03-31 | N33: 2024-03-31
E34: Last Outturn Flag | G34: flag | H34: =SUM(J34:N34) -> 1 | J34: =IF(J33 = $F32, 1, 0) -> 0 | K34: 1 | L34: 0 | M34: 0 | N34: 0
E35: Outturn Period Flag | G35: flag | H35: =SUM(J35:N35) -> 2 | J35: =IF($F32 >= J33, 1, 0) -> 1 | K35: =IF($F32 >= K33, 1, 0) -> 1 | L35: 0 | M35: 0 | N35: 0
E36: Outturn Period Total | F36: =SUM(J35:N35) -> 2 | G36: columns
E38: =Inputs!E$14 -> Acquisition date (midnight) | F38: =Inputs!F$14 -> 2021-03-31 | G38: =Inputs!G$14 -> date
E39: =E$23 -> Model Period END | F39: 00:00:00 | G39: date | H39: 00:00:00 | I39: 00:00:00 | J39: 2020-03-31 | K39: 2021-03-31 | L39: 2022-03-31 | M39: 2023-03-31 | N39: 2024-03-31
E40: Acquisition / initial balance date flag | G40: flag | H40: =SUM(J40:N40) -> 1 | J40: =IF(J39 = $F38, 1, 0) -> 0 | K40: 1 | L40: 0 | M40: 0 | N40: 0
A43: FORECAST PERIOD
E45: =E$34 -> Last Outturn Flag | F45: 0 | G45: flag | H45: 1 | I45: 0 | J45: 0 | K45: 1 | L45: 0 | M45: 0 | N45: 0
E46: 1st Forecast Period Flag | G46: flag | H46: =SUM(J46:N46) -> 1 | J46: =I45 -> 0 | K46: =J45 -> 0 | L46: 1 | M46: 0 | N46: 0
E48: =Inputs!E$16 -> Last forecast date | F48: =Inputs!F$16 -> 2024-03-31 | G48: =Inputs!G$16 -> date
E49: =E$23 -> Model Period END | F49: =F$23 -> 00:00:00 | G49: date | H49: 00:00:00 | J49: =J$23 -> 2020-03-31 | K49: 2021-03-31 | L49: 2022-03-31 | M49: 2023-03-31 | N49: 2024-03-31
E50: Last Forecast Period Flag | G50: flag | H50: =SUM(J50:N50) -> 1 | J50: =IF(AND($F48 > I49, $F48 <= J49), 1, 0) -> 0 | K50: =IF(AND($F48 > J49, $F48 <= K49), 1, 0) -> 0 | L50: 0 | M50: 0 | N50: 1
E52: =E$46 -> 1st Forecast Period Flag | F52: 0 | G52: flag | H52: 1 | I52: 0 | J52: =J$46 -> 0 | K52: 0 | L52: 1 | M52: 0 | N52: 0
E53: =E$50 -> Last Forecast Period Flag | F53: 0 | G53: flag | H53: 1 | I53: 0 | J53: 0 | K53: 0 | L53: 0 | M53: 0 | N53: 1
E54: Forecast Period Flag | G54: flag | H54: =SUM(J54:N54) -> 3 | J54: =J52 - I53 + I54 -> 0 | K54: 0 | L54: 1 | M54: 1 | N54: 1
E55: Forecast Period Total | F55: =SUM(J54:N54) -> 3 | G55: columns
E57: =E$35 -> Outturn Period Flag | F57: 0 | G57: flag | H57: 2 | I57: 0 | J57: 1 | K57: 1 | L57: 0 | M57: 0 | N57: 0
E58: =E$54 -> Forecast Period Flag | F58: 0 | G58: flag | H58: 3 | I58: 0 | J58: 0 | K58: 0 | L58: 1 | M58: 1 | N58: 1
E59: Outturn vs Forecast | G59: flag | J59: =IF(J57 = 1, "Outturn", IF(J58 = 1, "Forecast", "Post-Fcst")) -> Outturn | K59: =IF(K57 = 1, "Outturn", IF(K58 = 1, "Forecast", "Post-Fcst")) -> Outturn | L59: Forecast | M59: Forecast | N59: Forecast
A62: REC ADJUSTMENT PERIOD
E64: =Inputs!E18 -> First date of REC price cap adjustment | F64: =Inputs!F18 -> 2022-04-01 | G64: =Inputs!G18 -> date
E65: =E$23 -> Model Period END | F65: 00:00:00 | G65: date | H65: 00:00:00 | I65: 00:00:00 | J65: 2020-03-31 | K65: 2021-03-31 | L65: 2022-03-31 | M65: 2023-03-31 | N65: 2024-03-31
E66: 1st REC price cap adjustment period flag | G66: flag | H66: =SUM( J66:N66 ) -> 1 | J66: =IF(AND($F64 > I65, $F64 <= J65), 1, 0) -> 0 | K66: =IF(AND($F64 > J65, $F64 <= K65), 1, 0) -> 0 | L66: 0 | M66: 1 | N66: 0
E68: =E$66 -> 1st REC price cap adjustment period flag | F68: 0 | G68: flag | H68: 1 | I68: 0 | J68: 0 | K68: 0 | L68: 0 | M68: 1 | N68: 0
E69: REC price cap adjustment Period Flag | G69: flag | H69: =SUM( J69:N69 ) -> 2 | J69: =I69 + J68 -> 0 | K69: =J69 + K68 -> 0 | L69: 0 | M69: 1 | N69: 1
E70: REC price cap adjustment Period Total | F70: =SUM(J69:N69) -> 2 | G70: columns
A73: MODELLING PERIOD CHECK
E75: =E$12 -> Model Column Total | F75: =F$12 -> 5 | G75: =G$12 -> column
D76: less | E76: =E$36 -> Outturn Period Total | F76: =F$36 -> 2 | G76: =G$36 -> columns
D77: less | E77: =E$55 -> Forecast Period Total | F77: =F$55 -> 3 | G77: =G$55 -> columns
E78: Modelling Period Check | F78: =IF( F75 - SUM(F76:F77) <> 0, 1, 0 ) -> 0 | G78: check
A81: REC PRICE CAP ADJUSTMENT PERIOD CHECK
E83: =Inputs!E19 -> Length of REC price cap adjustment period | F83: =Inputs!F19 -> 2 | G83: years
D84: less | E84: =E70 -> REC price cap adjustment Period Total | F84: =F70 -> 2 | G84: columns
E85: REC price cap adjustment Period Check | F85: =IF( F83 - F84 <> 0, 1, 0 ) -> 0 | G85: check
A88: FINANCIAL YEAR
E90: =Inputs!E24 -> First Modelling Column Financial Year Number | F90: =Inputs!F24 -> 2020 | G90: =Inputs!G24 -> year
E91: =Inputs!E25 -> Financial Year End Month Number | F91: =Inputs!F25 -> 3 | G91: =Inputs!G25 -> month #
E92: =E$23 -> Model Period END | F92: =F$23 -> 00:00:00 | G92: date | H92: 00:00:00 | I92: 00:00:00 | J92: 2020-03-31 | K92: 2021-03-31 | L92: 2022-03-31 | M92: 2023-03-31 | N92: 2024-03-31
E93: =E$15 -> First model column flag | F93: 0 | G93: flag | H93: 1 | I93: 0 | J93: =J$15 -> 1 | K93: 0 | L93: 0 | M93: 0 | N93: 0
E94: Financial Year Ending | G94: year # | J94: =IF(J93 = 1, $F90, IF(J92 > (DATE(I94, $F91 + 1, 1) - 1), I94 + 1, I94)) -> 2020 | K94: =IF(K93 = 1, $F90, IF(K92 > (DATE(J94, $F91 + 1, 1) - 1), J94 + 1, J94)) -> 2021 | L94: =IF(L93 = 1, $F90, IF(L92 > (DATE(K94, $F91 + 1, 1) - 1), K94 + 1, K94)) -> 2022 | M94: =IF(M93 = 1, $F90, IF(M92 > (DATE(L94, $F91 + 1, 1) - 1), L94 + 1, L94)) -> 2023 | N94: =IF(N93 = 1, $F90, IF(N92 > (DATE(M94, $F91 + 1, 1) - 1), M94 + 1, M94)) -> 2024
A97: END

Sheet Index
A1: =RIGHT(CELL("filename", $A$1), LEN(CELL("filename", $A$1)) - SEARCH("]", CELL("filename", $A$1))) -> Index
E2: =Time!E$22 -> Model Period BEG | J2: =Time!J$22 -> 2019-04-01 | K2: =Time!K$22 -> 2020-04-01 | L2: =Time!L$22 -> 2021-04-01 | M2: =Time!M$22 -> 2022-04-01 | N2: =Time!N$22 -> 2023-04-01
E3: =Time!E$23 -> Model Period END | F3: =Check!F$8 -> 0 | G3: Error chks | J3: =Time!J$23 -> 2020-03-31 | K3: =Time!K$23 -> 2021-03-31 | L3: =Time!L$23 -> 2022-03-31 | M3: =Time!M$23 -> 2023-03-31 | N3: =Time!N$23 -> 2024-03-31
E4: =Time!E$59 -> Outturn vs Forecast | J4: =Time!J$59 -> Outturn | K4: =Time!K$59 -> Outturn | L4: =Time!L$59 -> Forecast | M4: =Time!M$59 -> Forecast | N4: =Time!N$59 -> Forecast
E5: =Time!E$94 -> Financial Year Ending | J5: =Time!J$94 -> 2020 | K5: =Time!K$94 -> 2021 | L5: =Time!L$94 -> 2022 | M5: =Time!M$94 -> 2023 | N5: =Time!N$94 -> 2024
E6: =Time!E$11 -> Model column counter | F6: Constant | G6: Unit | H6: Total | J6: =Time!J$11 -> 1 | K6: =Time!K$11 -> 2 | L6: =Time!L$11 -> 3 | M6: =Time!M$11 -> 4 | N6: =Time!N$11 -> 5
A8: CPIH INDEXATION
D10: Constant price adjustments to base year
E11: =Inputs!E56 -> Consumer Price Index (with housing) for October 2019 | F11: =Inputs!F56 -> 108.3 | G11: =Inputs!G56 -> Index | H11: =Inputs!H56 -> 0 | I11: =Inputs!I56 -> 0 | J11: =Inputs!J56 -> 0 | K11: =Inputs!K56 -> 0 | L11: =Inputs!L56 -> 0 | M11: =Inputs!M56 -> 0 | N11: =Inputs!N56 -> 0
E12: =Inputs!E57 -> Consumer Price Index (with housing) for October 2020 - base year | F12: =Inputs!F57 -> 109.2 | G12: =Inputs!G57 -> Index | H12: =Inputs!H57 -> 0 | I12: =Inputs!I57 -> 0 | J12: =Inputs!J57 -> 0 | K12: =Inputs!K57 -> 0 | L12: =Inputs!L57 -> 0 | M12: =Inputs!M57 -> 0 | N12: =Inputs!N57 -> 0
E13: =Inputs!E58 -> Consumer Price Index (with housing) for October 2021 | F13: =Inputs!F58 -> 113.4 | G13: =Inputs!G58 -> Index | H13: =Inputs!H58 -> 0 | I13: =Inputs!I58 -> 0 | J13: =Inputs!J58 -> 0 | K13: =Inputs!K58 -> 0 | L13: =Inputs!L58 -> 0 | M13: =Inputs!M58 -> 0 | N13: =Inputs!N58 -> 0
E14: =Inputs!E53 -> Base year prices financial year | F14: =Inputs!F53 -> 2021 | G14: =Inputs!G53 -> year | H14: =Inputs!H53 -> 0 | I14: =Inputs!I53 -> 0 | J14: =Inputs!J53 -> 0 | K14: =Inputs!K53 -> 0 | L14: =Inputs!L53 -> 0 | M14: =Inputs!M53 -> 0 | N14: =Inputs!N53 -> 0
E15: =Inputs!E39 -> Annual industry revenue - financial year price terms | F15: =Inputs!F39 -> 0 | G15: =Inputs!G39 -> year | H15: =Inputs!H39 -> 0 | I15: =Inputs!I39 -> 0 | J15: =Inputs!J39 -> 2020 | K15: =Inputs!K39 -> 2021 | L15: =Inputs!L39 -> 2022 | M15: =Inputs!M39 -> 2022 | N15: =Inputs!N39 -> 2020
E16: Index to inflate prices to base year 2020-21 CALC | G16: Index | H16: 0 | J16: =IF( J15 < $F14, $F11 / $F12, 0 ) -> 0.9917582418 | K16: =IF( K15 < $F14, $F11 / $F12, 0 ) -> 0 | L16: 0 | M16: 0 | N16: 0.9917582418
E17: Index to deflate prices to base year 2020-21 CALC | G17: Index | H17: 0 | J17: =IF( J15 > $F14, $F13 / $F12, 0 ) -> 0 | K17: =IF( K15 > $F14, $F13 / $F12, 0 ) -> 0 | L17: =IF( L15 > $F14, $F13 / $F12, 0 ) -> 1.038461538 | M17: 1.038461538 | N17: 0
A19: END

Sheet Calculations
A1: =RIGHT(CELL("filename", $A$1), LEN(CELL("filename", $A$1)) - SEARCH("]", CELL("filename", $A$1))) -> Calculations
E2: =Time!E$22 -> Model Period BEG | J2: =Time!J$22 -> 2019-04-01 | K2: =Time!K$22 -> 2020-04-01 | L2: =Time!L$22 -> 2021-04-01 | M2: =Time!M$22 -> 2022-04-01 | N2: =Time!N$22 -> 2023-04-01
E3: =Time!E$23 -> Model Period END | F3: =Check!F$8 -> 0 | G3: Error chks | J3: =Time!J$23 -> 2020-03-31 | K3: =Time!K$23 -> 2021-03-31 | L3: =Time!L$23 -> 2022-03-31 | M3: =Time!M$23 -> 2023-03-31 | N3: =Time!N$23 -> 2024-03-31
E4: =Time!E$59 -> Outturn vs Forecast | J4: =Time!J$59 -> Outturn | K4: =Time!K$59 -> Outturn | L4: =Time!L$59 -> Forecast | M4: =Time!M$59 -> Forecast | N4: =Time!N$59 -> Forecast
E5: =Time!E$94 -> Financial Year Ending | J5: =Time!J$94 -> 2020 | K5: =Time!K$94 -> 2021 | L5: =Time!L$94 -> 2022 | M5: =Time!M$94 -> 2023 | N5: =Time!N$94 -> 2024
E6: =Time!E$11 -> Model column counter | F6: Constant | G6: Unit | H6: Total | J6: =Time!J$11 -> 1 | K6: =Time!K$11 -> 2 | L6: =Time!L$11 -> 3 | M6: =Time!M$11 -> 4 | N6: =Time!N$11 -> 5
A8: 2020-21 EXCESS BAD DEBT TO BE RECOUPED BY RETAILERS
B10: Excess bad debt costs which Retailers in aggregate may pass through to customers
E12: =Inputs!E41 -> Industry revenue from 01 October 2019 to 31 March 2020 - nominal | F12: =Inputs!F41 -> 0 | G12: =Inputs!G41 -> £000s | H12: =Inputs!H41 -> 0 | I12: =Inputs!I41 -> 0 | J12: =Inputs!J41 -> 1257000 | K12: =Inputs!K41 -> 0 | L12: =Inputs!L41 -> 0 | M12: =Inputs!M41 -> 0 | N12: =Inputs!N41 -> 0
E13: =Inputs!E42 -> Industry revenue from 01 October 2019 to 31 March 2020 - financial year price terms | F13: =Inputs!F42 -> 0 | G13: =Inputs!G42 -> year | H13: =Inputs!H42 -> 0 | I13: =Inputs!I42 -> 0 | J13: =Inputs!J42 -> 2020 | K13: =Inputs!K42 -> 0 | L13: =Inputs!L42 -> 0 | M13: =Inputs!M42 -> 0 | N13: =Inputs!N42 -> 0
E14: =Index!E16 -> Index to inflate prices to base year 2020-21 CALC | F14: =Index!F16 -> 0 | G14: =Index!G16 -> Index | H14: =Index!H16 -> 0 | I14: =Index!I16 -> 0 | J14: =Index!J16 -> 0.9917582418 | K14: =Index!K16 -> 0 | L14: =Index!L16 -> 0 | M14: =Index!M16 -> 0 | N14: =Index!N16 -> 0.9917582418
E15: 01 October 2019 to 31 March 2020 total industry revenue inflated to 2020-21 prices CALC | F15: 0 | G15: £000s | H15: 0 | J15: =IF( J12 > 0, J12 / J14, 0 ) -> 1267445.983 | K15: =IF( K12 > 0, K12 / K14, 0 ) -> 0 | L15: 0 | M15: 0 | N15: 0
E17: =E15 -> 01 October 2019 to 31 March 2020 total industry revenue inflated to 2020-21 prices CALC | F17: 0 | G17: £000s | H17: 0 | I17: 0 | J17: 1267445.983 | K17: 0 | L17: 0 | M17: 0 | N17: 0
E18: =Inputs!E38 -> Annual industry revenue - nominal | F18: =Inputs!F38 -> 0 | G18: =Inputs!G38 -> £000s | H18: =Inputs!H38 -> 0 | I18: =Inputs!I38 -> 0 | J18: =Inputs!J38 -> 2565000 | K18: =Inputs!K38 -> 2194000 | L18: =Inputs!L38 -> 2400000 | M18: =Inputs!M38 -> 2540000 | N18: =Inputs!N38 -> 2565000
E19: =Inputs!E30 -> Industry wide outturn bad debt as a proportion of turnover for the two years ended 31 March 2021 | F19: =Inputs!F30 -> 0.0287 | G19: =Inputs!G30 -> %
E20: =Inputs!E31 -> Excess bad debt threshold | F20: =Inputs!F31 -> 0.02 | G20: =Inputs!G31 -> %
E21: =Inputs!E33 -> Excess bad debt sharing factor | F21: =Inputs!F33 -> 0.75 | G21: =Inputs!G33 -> %
E22: Value of Retailer portion of excess bad debt costs arising from 01 October 2019 to 31 March 2021 CALC | F22: =( J17 + ( K18 ) ) * ( F19 - F20 ) * F21 -> 22585.93504 | G22: £000s | H22: 0
B25: Real terms adjustment to annual industry revenue
E27: =Inputs!E38 -> Annual industry revenue - nominal | F27: =Inputs!F38 -> 0 | G27: =Inputs!G38 -> £000s | H27: =Inputs!H38 -> 0 | I27: =Inputs!I38 -> 0 | J27: =Inputs!J38 -> 2565000 | K27: =Inputs!K38 -> 2194000 | L27: =Inputs!L38 -> 2400000 | M27: =Inputs!M38 -> 2540000 | N27: =Inputs!N38 -> 2565000
E28: =Inputs!E39 -> Annual industry revenue - financial year price terms | F28: =Inputs!F39 -> 0 | G28: =Inputs!G39 -> year | H28: =Inputs!H39 -> 0 | I28: =Inputs!I39 -> 0 | J28: =Inputs!J39 -> 2020 | K28: =Inputs!K39 -> 2021 | L28: =Inputs!L39 -> 2022 | M28: =Inputs!M39 -> 2022 | N28: =Inputs!N39 -> 2020
E29: 2020-21 priced total industry revenue CALC | F29: 0 | G29: £000s | H29: 0 | J29: =IF( J28 = 2021, J27, 0) -> 0 | K29: =IF( K28 = 2021, K27, 0) -> 2194000 | L29: 0 | M29: 0 | N29: 0
E31: =Inputs!E38 -> Annual industry revenue - nominal | F31: =Inputs!F38 -> 0 | G31: =Inputs!G38 -> £000s | H31: =Inputs!H38 -> 0 | I31: =Inputs!I38 -> 0 | J31: =Inputs!J38 -> 2565000 | K31: =Inputs!K38 -> 2194000 | L31: =Inputs!L38 -> 2400000 | M31: =Inputs!M38 -> 2540000 | N31: =Inputs!N38 -> 2565000
E32: =Inputs!E39 -> Annual industry revenue - financial year price terms | F32: =Inputs!F39 -> 0 | G32: =Inputs!G39 -> year | H32: =Inputs!H39 -> 0 | I32: =Inputs!I39 -> 0 | J32: =Inputs!J39 -> 2020 | K32: =Inputs!K39 -> 2021 | L32: =Inputs!L39 -> 2022 | M32: =Inputs!M39 -> 2022 | N32: =Inputs!N39 -> 2020
E33: =Index!E16 -> Index to inflate prices to base year 2020-21 CALC | F33: =Index!F16 -> 0 | G33: =Index!G16 -> Index | H33: =Index!H16 -> 0 | I33: =Index!I16 -> 0 | J33: =Index!J16 -> 0.9917582418 | K33: =Index!K16 -> 0 | L33: =Index!L16 -> 0 | M33: =Index!M16 -> 0 | N33: =Index!N16 -> 0.9917582418
E34: 2019-20 priced total industry revenue inflated to 2020-21 prices CALC | F34: 0 | G34: £000s | H34: 0 | J34: =IF( J28 = 2020, J27 / J33, 0) -> 2586315.789 | K34: =IF( K28 = 2020, K27 / K33, 0) -> 0 | L34: 0 | M34: 0 | N34: 2586315.789
E36: =Inputs!E38 -> Annual industry revenue - nominal | F36: =Inputs!F38 -> 0 | G36: =Inputs!G38 -> £000s | H36: =Inputs!H38 -> 0 | I36: =Inputs!I38 -> 0 | J36: =Inputs!J38 -> 2565000 | K36: =Inputs!K38 -> 2194000 | L36: =Inputs!L38 -> 2400000 | M36: =Inputs!M38 -> 2540000 | N36: =Inputs!N38 -> 2565000
E37: =Inputs!E39 -> Annual industry revenue - financial year price terms | F37: =Inputs!F39 -> 0 | G37: =Inputs!G39 -> year | H37: =Inputs!H39 -> 0 | I37: =Inputs!I39 -> 0 | J37: =Inputs!J39 -> 2020 | K37: =Inputs!K39 -> 2021 | L37: =Inputs!L39 -> 2022 | M37: =Inputs!M39 -> 2022 | N37: =Inputs!N39 -> 2020
E38: =Index!E17 -> Index to deflate prices to base year 2020-21 CALC | F38: =Index!F17 -> 0 | G38: =Index!G17 -> Index | H38: =Index!H17 -> 0 | I38: =Index!I17 -> 0 | J38: =Index!J17 -> 0 | K38: =Index!K17 -> 0 | L38: =Index!L17 -> 1.038461538 | M38: =Index!M17 -> 1.038461538 | N38: =Index!N17 -> 0
E39: 2021-22 priced total industry revenue deflated to 2020-21 prices CALC | F39: 0 | G39: £000s | H39: 0 | J39: =IF( J28 = 2022, J27 / J38, 0) -> 0 | K39: =IF( K28 = 2022, K27 / K38, 0) -> 0 | L39: =IF( L28 = 2022, L27 / L38, 0) -> 2311111.111 | M39: =IF( M28 = 2022, M27 / M38, 0) -> 2445925.926 | N39: 0
E41: =E29 -> 2020-21 priced total industry revenue CALC | F41: =F29 -> 0 | G41: £000s | H41: 0 | I41: 0 | J41: 0 | K41: 2194000 | L41: 0 | M41: 0 | N41: 0
E42: =E34 -> 2019-20 priced total industry revenue inflated to 2020-21 prices CALC | F42: =F34 -> 0 | G42: £000s | H42: 0 | I42: 0 | J42: =J34 -> 2586315.789 | K42: 0 | L42: 0 | M42: 0 | N42: 2586315.789
E43: =E39 -> 2021-22 priced total industry revenue deflated to 2020-21 prices CALC | F43: =F39 -> 0 | G43: £000s | H43: 0 | I43: 0 | J43: 0 | K43: 0 | L43: 2311111.111 | M43: 2445925.926 | N43: 0
E45: Constant price industry revenue (2020-21 prices) | F45: 0 | G45: £000s | H45: 0 | J45: =SUM( J41:J43 ) -> 2586315.789 | K45: =SUM( K41:K43 ) -> 2194000 | L45: 2311111.111 | M45: =SUM( M41:M43 ) -> 2445925.926 | N45: 2586315.789
B48: Uplift of REC price caps for 2022-23 and 2023-24
E50: =E45 -> Constant price industry revenue (2020-21 prices) | F50: =F45 -> 0 | G50: £000s | H50: 0 | I50: 0 | J50: =J45 -> 2586315.789 | K50: 2194000 | L50: 2311111.111 | M50: 2445925.926 | N50: 2586315.789
E51: Clicking the 'Recalculate REC price cap adjustment' button recalculates the uplift to the net and gross margins in REC price caps (shown in cell F52) when model inputs change - this uses a macro. When cell F87 is highlighted red, the REC price cap adjustment needs to be recalculated. An explanation of this calculation and the methodology is detailed in annex A3 of the Bad debt December 2021 consultation document.
E52: Uplift to the net and gross margins in REC price caps - MACRO CALC | F52: 0.004892959772 | G52: %
E53: =Time!E69 -> REC price cap adjustment Period Flag | F53: =Time!F69 -> 0 | G53: =Time!G69 -> flag | H53: =Time!H69 -> 2 | I53: =Time!I69 -> 0 | J53: =Time!J69 -> 0 | K53: =Time!K69 -> 0 | L53: =Time!L69 -> 0 | M53: =Time!M69 -> 1 | N53: =Time!N69 -> 1
E54: Constant price industry revenue for financial years 2022-23 and 2023-24 after the REC price cap adjustment CALC | F54: 0 | G54: £000s | H54: 0 | J54: =IF( J53 = 1, J50 * ( 1 + $F52 ), 0 ) -> 0 | K54: =IF( K53 = 1, K50 * ( 1 + $F52 ), 0 ) -> 0 | L54: 0 | M54: 2457893.743 | N54: 2598970.529
B57: Constant price increase in annual industry revenue from REC price cap adjustment
E59: =E54 -> Constant price industry revenue for financial years 2022-23 and 2023-24 after the REC price cap adjustment CALC | F59: =F54 -> 0 | G59: £000s | H59: 0 | I59: 0 | J59: 0 | K59: 0 | L59: 0 | M59: 2457893.743 | N59: 2598970.529
E60: =E45 -> Constant price industry revenue (2020-21 prices) | F60: =F45 -> 0 | G60: £000s | H60: 0 | I60: 0 | J60: 2586315.789 | K60: 2194000 | L60: 2311111.111 | M60: 2445925.926 | N60: 2586315.789
E61: Constant price increase in industry revenue for financial years 2022-23 and 2023-24 after the REC price cap adjustment CALC | F61: 0 | G61: £000s | H61: =SUM( J61:N61 ) -> 24622.55628 | J61: =IF( J59 = 0, 0, J59 - J60 ) -> 0 | K61: =IF( K59 = 0, 0, K59 - K60 ) -> 0 | L61: 0 | M61: 11967.81716 | N61: 12654.73912
E63: Constant price increase in industry revenue for financial years 2022-23 and 2023-24 after the REC price cap adjustment TOTAL | F63: =H61 -> 24622.55628 | G63: £000s | H63: 0
B66: Present value of the increase in industry revenue from an uplift to REC price caps
E68: =Time!E94 -> Financial Year Ending | F68: =Time!F94 -> 0 | G68: =Time!G94 -> year # | H68: =Time!H94 -> 0 | I68: =Time!I94 -> 0 | J68: =Time!J94 -> 2020 | K68: =Time!K94 -> 2021 | L68: =Time!L94 -> 2022 | M68: =Time!M94 -> 2023 | N68: =Time!N94 -> 2024
E69: =Inputs!E48 -> Present value reference year | F69: =Inputs!F48 -> 2021 | G69: =Inputs!G48 -> year
E70: =Time!E69 -> REC price cap adjustment Period Flag | F70: =Time!F69 -> 0 | G70: =Time!G69 -> flag | H70: =Time!H69 -> 2 | I70: =Time!I69 -> 0 | J70: =Time!J69 -> 0 | K70: =Time!K69 -> 0 | L70: =Time!L69 -> 0 | M70: =Time!M69 -> 1 | N70: =Time!N69 -> 1
E71: Present value counter CALC | F71: 0 | G71: year # | H71: 0 | J71: =IF( J70 = 1, J68 - $F69, 0) -> 0 | K71: =IF( K70 = 1, K68 - $F69, 0) -> 0 | L71: 0 | M71: 2 | N71: 3
E73: =E61 -> Constant price increase in industry revenue for financial years 2022-23 and 2023-24 after the REC price cap adjustment CALC | F73: =F61 -> 0 | G73: £000s | H73: =H61 -> 24622.55628 | I73: 0 | J73: 0 | K73: 0 | L73: 0 | M73: 11967.81716 | N73: 12654.73912
E74: =Inputs!E47 -> Efficient cost of financing excess bad debt | F74: =Inputs!F47 -> 0.035 | G74: =Inputs!G47 -> % | H74: =Inputs!H47 -> 0
E75: =E71 -> Present value counter CALC | F75: =F71 -> 0 | G75: year # | H75: 0 | I75: 0 | J75: 0 | K75: 0 | L75: 0 | M75: 2 | N75: 3
E76: =Time!E69 -> REC price cap adjustment Period Flag | F76: =Time!F69 -> 0 | G76: =Time!G69 -> flag | H76: =Time!H69 -> 2 | I76: =Time!I69 -> 0 | J76: =Time!J69 -> 0 | K76: =Time!K69 -> 0 | L76: =Time!L69 -> 0 | M76: =Time!M69 -> 1 | N76: =Time!N69 -> 1
E77: Present value in 2020-21 prices of a revenue increase in 2022-23 and 2023-24 after the REC price cap adjustment CALC | F77: 0 | G77: £000s | H77: =SUM( M77:N77 ) -> 22585.93502 | J77: =IF( J76 = 1, J73 / ( 1 + $F74 ) ^ J75, 0 ) -> 0 | K77: =IF( K76 = 1, K73 / ( 1 + $F74 ) ^ K75, 0 ) -> 0 | L77: 0 | M77: 11172.08538 | N77: 11413.84964
E79: Present value in 2020-21 prices of a revenue increase in 2022-23 and 2023-24 after the REC price cap adjustment TOTAL | F79: =H77 -> 22585.93502 | G79: £000s
B82: Difference between the Retailer portion of excess bad debt costs and the present value of the increase in industry revenue from REC price cap adjustment
E84: =E22 -> Value of Retailer portion of excess bad debt costs arising from 01 October 2019 to 31 March 2021 CALC | F84: =F22 -> 22585.93504 | G84: £000s | H84: 0
E85: =E79 -> Present value in 2020-21 prices of a revenue increase in 2022-23 and 2023-24 after the REC price cap adjustment TOTAL | F85: =F79 -> 22585.93502 | G85: £000s | H85: 0
E86: Difference in the Retailer portion of excess bad debt costs and the present value of the increase in industry revenue from REC price cap adjustment | F86: =ROUND( F84 - F85, 4 ) -> 0 | G86: £000s
E87: Difference in the Retailer portion of excess bad debt costs and the present value of the increase in industry revenue from REC price cap adjustment - Check | F87: =IF( $F86 <> 0, 1, 0 ) -> 0 | G87: check
A90: END

Sheet Outputs-->

Sheet Output
A1: =RIGHT(CELL("filename", $A$1), LEN(CELL("filename", $A$1)) - SEARCH("]", CELL("filename", $A$1))) -> Output
E2: =Time!E$22 -> Model Period BEG | J2: =Time!J$22 -> 2019-04-01 | K2: =Time!K$22 -> 2020-04-01 | L2: =Time!L$22 -> 2021-04-01 | M2: =Time!M$22 -> 2022-04-01 | N2: =Time!N$22 -> 2023-04-01
E3: =Time!E$23 -> Model Period END | F3: =Check!F$8 -> 0 | G3: Error chks | J3: =Time!J$23 -> 2020-03-31 | K3: =Time!K$23 -> 2021-03-31 | L3: =Time!L$23 -> 2022-03-31 | M3: =Time!M$23 -> 2023-03-31 | N3: =Time!N$23 -> 2024-03-31
E4: =Time!E$59 -> Outturn vs Forecast | J4: =Time!J$59 -> Outturn | K4: =Time!K$59 -> Outturn | L4: =Time!L$59 -> Forecast | M4: =Time!M$59 -> Forecast | N4: =Time!N$59 -> Forecast
E5: =Time!E$94 -> Financial Year Ending | J5: =Time!J$94 -> 2020 | K5: =Time!K$94 -> 2021 | L5: =Time!L$94 -> 2022 | M5: =Time!M$94 -> 2023 | N5: =Time!N$94 -> 2024
E6: =Time!E$11 -> Model column counter | F6: Constant | G6: Unit | H6: Total | J6: =Time!J$11 -> 1 | K6: =Time!K$11 -> 2 | L6: =Time!L$11 -> 3 | M6: =Time!M$11 -> 4 | N6: =Time!N$11 -> 5
A8: Proportion of bad debt to be recouped by Retailers
E10: =Calculations!E22 -> Value of Retailer portion of excess bad debt costs arising from 01 October 2019 to 31 March 2021 CALC | F10: =Calculations!F22 -> 22585.93504 | G10: =Calculations!G22 -> £000s | H10: =Calculations!H22 -> 0
E12: =Calculations!E52 -> Uplift to the net and gross margins in REC price caps - MACRO CALC | F12: =Calculations!F52 -> 0.004892959772 | G12: =Calculations!G52 -> % | H12: =Calculations!H52 -> 0
E14: =Calculations!E61 -> Constant price increase in industry revenue for financial years 2022-23 and 2023-24 after the REC price cap adjustment CALC | F14: =Calculations!F61 -> 0 | G14: =Calculations!G61 -> £000s | H14: =Calculations!H61 -> 24622.55628 | I14: =Calculations!I61 -> 0 | J14: =Calculations!J61 -> 0 | K14: =Calculations!K61 -> 0 | L14: =Calculations!L61 -> 0 | M14: =Calculations!M61 -> 11967.81716 | N14: =Calculations!N61 -> 12654.73912
E16: =Calculations!E77 -> Present value in 2020-21 prices of a revenue increase in 2022-23 and 2023-24 after the REC price cap adjustment CALC | F16: =Calculations!F77 -> 0 | G16: =Calculations!G77 -> £000s | H16: =Calculations!H77 -> 22585.93502 | I16: =Calculations!I77 -> 0 | J16: =Calculations!J77 -> 0 | K16: =Calculations!K77 -> 0 | L16: =Calculations!L77 -> 0 | M16: =Calculations!M77 -> 11172.08538 | N16: =Calculations!N77 -> 11413.84964
A18: END

Sheet Integrity checks-->

Sheet Check
A1: =RIGHT(CELL("filename", $A$1), LEN(CELL("filename", $A$1)) - SEARCH("]", CELL("filename", $A$1))) -> Check
E2: =Time!E$22 -> Model Period BEG | J2: =Time!J$22 -> 2019-04-01 | K2: =Time!K$22 -> 2020-04-01 | L2: =Time!L$22 -> 2021-04-01 | M2: =Time!M$22 -> 2022-04-01 | N2: =Time!N$22 -> 2023-04-01
E3: =Time!E$23 -> Model Period END | F3: =Check!F$8 -> 0 | G3: Error chks | J3: =Time!J$23 -> 2020-03-31 | K3: =Time!K$23 -> 2021-03-31 | L3: =Time!L$23 -> 2022-03-31 | M3: =Time!M$23 -> 2023-03-31 | N3: =Time!N$23 -> 2024-03-31
E4: =Time!E$59 -> Outturn vs Forecast | J4: =Time!J$59 -> Outturn | K4: =Time!K$59 -> Outturn | L4: =Time!L$59 -> Forecast | M4: =Time!M$59 -> Forecast | N4: =Time!N$59 -> Forecast
E5: =Time!E$94 -> Financial Year Ending | J5: =Time!J$94 -> 2020 | K5: =Time!K$94 -> 2021 | L5: =Time!L$94 -> 2022 | M5: =Time!M$94 -> 2023 | N5: =Time!N$94 -> 2024
E6: =Time!E$11 -> Model column counter | F6: Constant | G6: Unit | H6: Total | J6: =Time!J$11 -> 1 | K6: =Time!K$11 -> 2 | L6: =Time!L$11 -> 3 | M6: =Time!M$11 -> 4 | N6: =Time!N$11 -> 5
E8: Total error checks | F8: =SUM(F11:F15) -> 0 | G8: check
A10: [Do not delete]
E12: =Time!E78 -> Modelling Period Check | F12: =Time!F78 -> 0 | G12: =Time!G78 -> check
E13: =Time!E85 -> REC price cap adjustment Period Check | F13: =Time!F85 -> 0 | G13: =Time!G85 -> check
E14: =Calculations!E87 -> Difference in the Retailer portion of excess bad debt costs and the present value of the increase in industry revenue from REC price cap adjustment - Check | F14: =Calculations!F87 -> 0 | G14: =Calculations!G87 -> check
A16: END
